[Event "Late-Titled-Tuesday-Blitz-September-26-2023"]
[Site "Chess.com"]
[Date "2023.09.26"]
[Round "4"]
[White "iturrizaga"]
[Black "Nf3c5"]
[Result "1-0"]
[WhiteElo "2995"]
[BlackElo "2594"]
[TimeControl "180+1"]
[EndTime "14:37:48 PDT"]
[Termination "iturrizaga won by resignation"]

1. d4 {[%clk 0:03:00.9]} 1... Nf6 {[%clk 0:02:55.5]} 2. Nf3 {[%clk 0:03:01.8]}
2... e6 {[%clk 0:02:54.7]} 3. Bg5 {[%clk 0:03:00.9]} 3... h6 {[%clk 0:02:51.9]}
4. Bxf6 {[%clk 0:02:59.8]} 4... Qxf6 {[%clk 0:02:51.3]} 5. e4 {[%clk 0:03:00.7]}
5... d6 {[%clk 0:02:51.3]} 6. Nc3 {[%clk 0:03:00.5]} 6... a6 {[%clk 0:02:50.9]}
7. Bd3 {[%clk 0:02:58.5]} 7... g5 {[%clk 0:02:40.1]} 8. h3 {[%clk 0:02:57.8]}
8... Bg7 {[%clk 0:02:39.7]} 9. Qd2 {[%clk 0:02:57.8]} 9... Qe7 {[%clk
0:02:33.7]} 10. O-O-O {[%clk 0:02:57.7]} 10... Nd7 {[%clk 0:02:22.8]} 11. Kb1
{[%clk 0:02:57.7]} 11... b6 {[%clk 0:02:22.5]} 12. d5 {[%clk 0:02:53.6]} 12...
Ne5 {[%clk 0:02:01.2]} 13. Nxe5 {[%clk 0:02:49.4]} 13... Bxe5 {[%clk 0:02:02.1]}
14. g3 {[%clk 0:02:47.3]} 14... Bb7 {[%clk 0:02:01.9]} 15. f4 {[%clk 0:02:46.6]}
15... gxf4 {[%clk 0:01:54.9]} 16. gxf4 {[%clk 0:02:47.5]} 16... Bf6 {[%clk
0:01:55.6]} 17. Rhe1 {[%clk 0:02:47.4]} 17... e5 {[%clk 0:01:47.2]} 18. Ne2
{[%clk 0:02:42.3]} 18... exf4 {[%clk 0:01:41.8]} 19. c3 {[%clk 0:02:39.9]} 19...
O-O-O {[%clk 0:01:33]} 20. Qxf4 {[%clk 0:02:38.4]} 20... Be5 {[%clk 0:01:27.8]}
21. Qf1 {[%clk 0:02:38.5]} 21... Kb8 {[%clk 0:01:25.7]} 22. Nd4 {[%clk
0:02:23.1]} 22... Bxd4 {[%clk 0:01:21.5]} 23. cxd4 {[%clk 0:02:24]} 23... Ka7
{[%clk 0:01:19.9]} 24. Re3 {[%clk 0:02:22.1]} 24... f5 {[%clk 0:01:11.7]} 25.
Bxa6 {[%clk 0:02:09.4]} 25... Bxa6 {[%clk 0:00:52.9]} 26. Ra3 {[%clk 0:02:08.1]}
26... Qxe4+ {[%clk 0:00:53.5]} 27. Ka1 {[%clk 0:02:08.7]} 27... Qxd5 {[%clk
0:00:50.3]} 28. Qxa6+ {[%clk 0:02:07.3]} 28... Kb8 {[%clk 0:00:50.9]} 29. Qa7+
{[%clk 0:01:54.3]} 29... Kc8 {[%clk 0:00:50.8]} 30. Rc1 {[%clk 0:01:51.2]} 30...
Qb7 {[%clk 0:00:51.2]} 31. Qa4 {[%clk 0:01:20.3]} 31... Kb8 {[%clk 0:00:50]} 32.
Rac3 {[%clk 0:01:19.7]} 32... Rh7 {[%clk 0:00:48.7]} 33. Qc2 {[%clk 0:01:17.6]}
33... Rf7 {[%clk 0:00:48.3]} 34. d5 {[%clk 0:01:15.2]} 34... f4 {[%clk
0:00:47.2]} 35. Qe4 {[%clk 0:01:12.5]} 35... Rdf8 {[%clk 0:00:45.3]} 36. Rf3
{[%clk 0:01:10.5]} 36... Qc8 {[%clk 0:00:41.6]} 37. a4 {[%clk 0:01:09.2]} 37...
Qf5 {[%clk 0:00:41.1]} 38. Qc4 {[%clk 0:01:09.8]} 38... Qc8 {[%clk 0:00:33.4]}
39. a5 {[%clk 0:01:09.9]} 39... Qb7 {[%clk 0:00:29.6]} 40. a6 {[%clk 0:01:09]}
40... Qc8 {[%clk 0:00:25.1]} 41. Ka2 {[%clk 0:01:04.3]} 41... Ka7 {[%clk
0:00:25.2]} 42. Rcc3 {[%clk 0:01:00.7]} 42... h5 {[%clk 0:00:16.4]} 43. Qb5
{[%clk 0:00:58.8]} 43... Rf5 {[%clk 0:00:12.8]} 44. Rc6 {[%clk 0:00:58.4]} 44...
Qxa6+ {[%clk 0:00:11.2]} 45. Ra3 {[%clk 0:00:58]} 45... Qxa3+ {[%clk 0:00:10.5]}
46. Kxa3 {[%clk 0:00:57.6]} 46... R8f7 {[%clk 0:00:11.4]} 47. Rc4 {[%clk
0:00:54.5]} 47... f3 {[%clk 0:00:08.2]} 48. Ra4+ {[%clk 0:00:54.3]} 48... Kb8
{[%clk 0:00:07.5]} 49. Qe8+ {[%clk 0:00:55.1]} 1-0

[Event "Late-Titled-Tuesday-Blitz-September-26-2023"]
[Site "Chess.com"]
[Date "2023.09.26"]
[Round "4"]
[White "Agibileg"]
[Black "maksimys18"]
[Result "1-0"]
[WhiteElo "2693"]
[BlackElo "2506"]
[TimeControl "180+1"]
[EndTime "14:37:49 PDT"]
[Termination "Agibileg won by checkmate"]

1. d4 {[%clk 0:03:00]} 1... e6 {[%clk 0:03:00.9]} 2. c4 {[%clk 0:03:00.1]} 2...
d5 {[%clk 0:03:01.1]} 3. Nc3 {[%clk 0:02:59.9]} 3... Be7 {[%clk 0:03:00.9]} 4.
Nf3 {[%clk 0:02:59.5]} 4... Nf6 {[%clk 0:03:01]} 5. Bg5 {[%clk 0:02:58]} 5...
O-O {[%clk 0:03:00.8]} 6. e3 {[%clk 0:02:57.9]} 6... h6 {[%clk 0:03:01.1]} 7.
Bh4 {[%clk 0:02:57.9]} 7... b6 {[%clk 0:03:01.4]} 8. cxd5 {[%clk 0:02:58.1]}
8... Nxd5 {[%clk 0:03:01.1]} 9. Bxe7 {[%clk 0:02:58.2]} 9... Qxe7 {[%clk
0:03:01.3]} 10. Bd3 {[%clk 0:02:58.3]} 10... c5 {[%clk 0:02:59.7]} 11. O-O
{[%clk 0:02:57.4]} 11... Bb7 {[%clk 0:02:59.1]} 12. e4 {[%clk 0:02:51.9]} 12...
Nxc3 {[%clk 0:02:58.2]} 13. bxc3 {[%clk 0:02:51.9]} 13... cxd4 {[%clk
0:02:58.4]} 14. cxd4 {[%clk 0:02:52.8]} 14... Nd7 {[%clk 0:02:58.3]} 15. Re1
{[%clk 0:02:46]} 15... Rfd8 {[%clk 0:02:57.9]} 16. h3 {[%clk 0:02:29.8]} 16...
Rac8 {[%clk 0:02:56.1]} 17. Qd2 {[%clk 0:02:24.5]} 17... Nf6 {[%clk 0:02:45]}
18. Rad1 {[%clk 0:02:23.7]} 18... Qa3 {[%clk 0:02:39]} 19. Bb1 {[%clk 0:02:23]}
19... Qc3 {[%clk 0:02:36.6]} 20. Qf4 {[%clk 0:02:22.7]} 20... a5 {[%clk
0:02:18]} 21. Re3 {[%clk 0:02:18.4]} 21... Qb4 {[%clk 0:02:11.5]} 22. a3 {[%clk
0:02:03.3]} 22... Qa4 {[%clk 0:02:09.7]} 23. Rde1 {[%clk 0:01:54.8]} 23... b5
{[%clk 0:01:59.5]} 24. e5 {[%clk 0:01:20.5]} 24... Nd7 {[%clk 0:01:45.3]} 25.
Nh4 {[%clk 0:01:07.9]} 25... Nf8 {[%clk 0:01:41.9]} 26. Rg3 {[%clk 0:01:08.3]}
26... Rxd4 {[%clk 0:01:07]} 27. Qf6 {[%clk 0:00:45.2]} 27... Ng6 {[%clk
0:01:04.3]} 28. Rxg6 {[%clk 0:00:45.4]} 28... fxg6 {[%clk 0:01:00.5]} 29. Qxe6+
{[%clk 0:00:46]} 29... Kh8 {[%clk 0:00:30.2]} 30. Nxg6+ {[%clk 0:00:45.7]} 30...
Kh7 {[%clk 0:00:30.5]} 31. Nf8+ {[%clk 0:00:36.9]} 31... Kh8 {[%clk 0:00:29.9]}
32. Ng6+ {[%clk 0:00:29]} 32... Kh7 {[%clk 0:00:29.7]} 33. Ne7+ {[%clk
0:00:29.1]} 33... Kh8 {[%clk 0:00:29.6]} 34. Qf5 {[%clk 0:00:24.3]} 34... Be4
{[%clk 0:00:23.7]} 35. Qxc8+ {[%clk 0:00:22.3]} 35... Kh7 {[%clk 0:00:23.2]} 36.
Bxe4+ {[%clk 0:00:22.1]} 36... Rxe4 {[%clk 0:00:23]} 37. Qg8# {[%clk 0:00:22.6]}
1-0

[Event "Late-Titled-Tuesday-Blitz-September-26-2023"]
[Site "Chess.com"]
[Date "2023.09.26"]
[Round "4"]
[White "rikchessmx"]
[Black "Saif_Malek04"]
[Result "0-1"]
[WhiteElo "2357"]
[BlackElo "2580"]
[TimeControl "180+1"]
[EndTime "14:37:49 PDT"]
[Termination "Saif_Malek04 won by checkmate"]

1. e4 {[%clk 0:03:00.9]} 1... c6 {[%clk 0:02:56.5]} 2. d4 {[%clk 0:03:00.3]}
2... d6 {[%clk 0:02:57.4]} 3. Be3 {[%clk 0:02:58.6]} 3... Nd7 {[%clk 0:02:58.3]}
4. Nc3 {[%clk 0:02:58.2]} 4... Qc7 {[%clk 0:02:59.2]} 5. f3 {[%clk 0:02:58.4]}
5... e5 {[%clk 0:02:59.4]} 6. Qd2 {[%clk 0:02:58.5]} 6... Ngf6 {[%clk
0:02:59.6]} 7. Bc4 {[%clk 0:02:58.3]} 7... Be7 {[%clk 0:02:58.9]} 8. Bb3 {[%clk
0:02:58.2]} 8... b5 {[%clk 0:02:56.2]} 9. g4 {[%clk 0:02:56.2]} 9... a5 {[%clk
0:02:55.9]} 10. a4 {[%clk 0:02:55.6]} 10... b4 {[%clk 0:02:55.8]} 11. Nce2
{[%clk 0:02:55.9]} 11... Ba6 {[%clk 0:02:54.6]} 12. Ng3 {[%clk 0:02:55.1]} 12...
g6 {[%clk 0:02:48.8]} 13. g5 {[%clk 0:02:53.8]} 13... Nh5 {[%clk 0:02:44.3]} 14.
Nxh5 {[%clk 0:02:53.4]} 14... gxh5 {[%clk 0:02:45.2]} 15. Ne2 {[%clk 0:02:52.1]}
15... O-O-O {[%clk 0:02:27.8]} 16. Bxf7 {[%clk 0:02:44.6]} 16... Rdf8 {[%clk
0:02:25.2]} 17. Bxh5 {[%clk 0:02:44.2]} 17... Nb6 {[%clk 0:02:14.6]} 18. b3
{[%clk 0:02:44.1]} 18... d5 {[%clk 0:02:06.7]} 19. O-O-O {[%clk 0:02:37.4]}
19... exd4 {[%clk 0:01:59]} 20. Nxd4 {[%clk 0:02:27.7]} 20... Qe5 {[%clk
0:01:50.9]} 21. Kb1 {[%clk 0:02:09.8]} 21... Kb7 {[%clk 0:01:43.5]} 22. f4
{[%clk 0:02:00.4]} 22... Qxe4 {[%clk 0:01:26.9]} 23. Bf3 {[%clk 0:01:59.9]}
23... Qg6 {[%clk 0:01:26.3]} 24. f5 {[%clk 0:01:56.6]} 24... Qe8 {[%clk
0:01:19.4]} 25. f6 {[%clk 0:01:53.5]} 25... Bc5 {[%clk 0:01:11.9]} 26. Rhe1
{[%clk 0:01:51]} 26... Qc8 {[%clk 0:00:45.2]} 27. Bf4 {[%clk 0:01:46.4]} 27...
Qh3 {[%clk 0:00:26.2]} 28. Bg3 {[%clk 0:01:33.6]} 28... Nc4 {[%clk 0:00:20.4]}
29. bxc4 {[%clk 0:01:32.2]} 29... Bxc4 {[%clk 0:00:21.3]} 30. Ne6 {[%clk
0:01:31.2]} 30... Bb6 {[%clk 0:00:12]} 31. Nxf8 {[%clk 0:01:29.7]} 31... Rxf8
{[%clk 0:00:12.9]} 32. Re7+ {[%clk 0:01:29.5]} 32... Ka6 {[%clk 0:00:13.6]} 33.
Bf2 {[%clk 0:01:25.7]} 33... Qxf3 {[%clk 0:00:12]} 34. Bxb6 {[%clk 0:01:21.5]}
34... Qa3 {[%clk 0:00:12.2]} 35. c3 {[%clk 0:01:09.3]} 35... bxc3 {[%clk
0:00:12.5]} 36. Qc2 {[%clk 0:01:06.9]} 36... Kxb6 {[%clk 0:00:04.9]} 37. Qf2+
{[%clk 0:00:53.1]} 37... c5 {[%clk 0:00:02.6]} 38. Rde1 {[%clk 0:00:51.1]} 38...
Qb3+ {[%clk 0:00:01.2]} 39. Kc1 {[%clk 0:00:49.6]} 39... Qa3+ {[%clk 0:00:02.1]}
40. Kb1 {[%clk 0:00:47.7]} 40... Bd3+ {[%clk 0:00:02.3]} 41. Qc2 {[%clk
0:00:45.9]} 41... Qb2# {[%clk 0:00:03]} 0-1

[Event "Late-Titled-Tuesday-Blitz-September-26-2023"]
[Site "Chess.com"]
[Date "2023.09.26"]
[Round "4"]
[White "The_Princess_Moon"]
[Black "MAGMAchess02"]
[Result "1-0"]
[WhiteElo "2279"]
[BlackElo "2353"]
[TimeControl "180+1"]
[EndTime "14:37:49 PDT"]
[Termination "The_Princess_Moon won by checkmate"]

1. e4 {[%clk 0:03:00.9]} 1... g6 {[%clk 0:03:00]} 2. d4 {[%clk 0:03:00.2]} 2...
Bg7 {[%clk 0:02:59.6]} 3. Nf3 {[%clk 0:03:00.2]} 3... c6 {[%clk 0:02:59.9]} 4.
Nc3 {[%clk 0:03:01.1]} 4... d5 {[%clk 0:02:59.8]} 5. h3 {[%clk 0:03:01.1]} 5...
dxe4 {[%clk 0:02:58.3]} 6. Nxe4 {[%clk 0:03:02]} 6... Nf6 {[%clk 0:02:57.5]} 7.
Bd3 {[%clk 0:03:00.9]} 7... O-O {[%clk 0:02:56.5]} 8. Bg5 {[%clk 0:03:00]} 8...
Nbd7 {[%clk 0:02:53.4]} 9. c3 {[%clk 0:02:45]} 9... Qc7 {[%clk 0:02:32.9]} 10.
O-O {[%clk 0:02:40.6]} 10... Nxe4 {[%clk 0:02:07.5]} 11. Bxe4 {[%clk 0:02:35.3]}
11... Nf6 {[%clk 0:02:06.9]} 12. Bc2 {[%clk 0:02:33]} 12... Nd5 {[%clk
0:01:57.2]} 13. Qd2 {[%clk 0:02:29.5]} 13... a5 {[%clk 0:01:48.1]} 14. Bh6
{[%clk 0:02:20.5]} 14... b5 {[%clk 0:01:21.5]} 15. a4 {[%clk 0:02:10]} 15... b4
{[%clk 0:01:14.7]} 16. c4 {[%clk 0:02:08]} 16... Nb6 {[%clk 0:01:11.8]} 17. b3
{[%clk 0:02:02]} 17... Rd8 {[%clk 0:01:06.9]} 18. Bxg7 {[%clk 0:02:01.1]} 18...
Kxg7 {[%clk 0:01:06.6]} 19. Qe3 {[%clk 0:01:58.2]} 19... h6 {[%clk 0:00:46]} 20.
Rfe1 {[%clk 0:01:55.1]} 20... Be6 {[%clk 0:00:45.5]} 21. Ne5 {[%clk 0:01:51.8]}
21... Bc8 {[%clk 0:00:22.2]} 22. Qf3 {[%clk 0:01:33.6]} 22... e6 {[%clk
0:00:14.3]} 23. Qg4 {[%clk 0:01:11]} 23... h5 {[%clk 0:00:11]} 24. Qg5 {[%clk
0:01:05.9]} 24... Rg8 {[%clk 0:00:05.1]} 25. Re3 {[%clk 0:00:54.1]} 25... Nd7
{[%clk 0:00:01.3]} 26. Nxg6 {[%clk 0:00:36.8]} 26... fxg6 {[%clk 0:00:02.2]} 27.
Qxg6+ {[%clk 0:00:37.2]} 27... Kf8 {[%clk 0:00:02.7]} 28. Rf3+ {[%clk
0:00:37.4]} 28... Ke7 {[%clk 0:00:02.9]} 29. Rf7+ {[%clk 0:00:24.4]} 29... Kd6
{[%clk 0:00:02.7]} 30. c5+ {[%clk 0:00:24]} 30... Kd5 {[%clk 0:00:02.8]} 31.
Qe4# {[%clk 0:00:23.1]} 1-0

[Event "Late-Titled-Tuesday-Blitz-September-26-2023"]
[Site "Chess.com"]
[Date "2023.09.26"]
[Round "4"]
[White "Zavgorodniy_Sergiy"]
[Black "UK_23"]
[Result "0-1"]
[WhiteElo "2591"]
[BlackElo "2464"]
[TimeControl "180+1"]
[EndTime "14:37:50 PDT"]
[Termination "UK_23 won on time"]

1. d4 {[%clk 0:03:00.9]} 1... d5 {[%clk 0:02:59.9]} 2. c4 {[%clk 0:03:01.1]}
2... e6 {[%clk 0:03:00.6]} 3. Nf3 {[%clk 0:03:01.2]} 3... Nf6 {[%clk 0:03:01.2]}
4. e3 {[%clk 0:03:01.7]} 4... Be7 {[%clk 0:03:00.4]} 5. Nbd2 {[%clk 0:03:01.5]}
5... O-O {[%clk 0:03:00.9]} 6. Bd3 {[%clk 0:03:01.8]} 6... a6 {[%clk 0:03:01.4]}
7. O-O {[%clk 0:03:01.2]} 7... dxc4 {[%clk 0:03:01.6]} 8. Nxc4 {[%clk
0:03:01.7]} 8... b5 {[%clk 0:03:02.2]} 9. Nce5 {[%clk 0:03:02]} 9... Bb7 {[%clk
0:03:02]} 10. b3 {[%clk 0:03:02.2]} 10... c5 {[%clk 0:03:02]} 11. Bb2 {[%clk
0:02:53.7]} 11... Nbd7 {[%clk 0:03:02.1]} 12. Nxd7 {[%clk 0:02:52.2]} 12... Qxd7
{[%clk 0:02:55.5]} 13. dxc5 {[%clk 0:02:44.9]} 13... Bxf3 {[%clk 0:02:54.6]} 14.
gxf3 {[%clk 0:02:41.1]} 14... Rfd8 {[%clk 0:02:47.1]} 15. Be2 {[%clk 0:02:14.8]}
15... Qxd1 {[%clk 0:02:39.3]} 16. Rfxd1 {[%clk 0:02:12.9]} 16... Bxc5 {[%clk
0:02:39.7]} 17. a4 {[%clk 0:01:57.9]} 17... bxa4 {[%clk 0:02:29.4]} 18. bxa4
{[%clk 0:01:52.2]} 18... a5 {[%clk 0:02:26.5]} 19. Bb5 {[%clk 0:01:49.8]} 19...
Bb4 {[%clk 0:02:23.2]} 20. Kf1 {[%clk 0:01:47.5]} 20... Nd5 {[%clk 0:02:22.1]}
21. Rac1 {[%clk 0:01:45]} 21... Rac8 {[%clk 0:02:14.6]} 22. f4 {[%clk
0:01:40.7]} 22... Kf8 {[%clk 0:02:09.8]} 23. Ba6 {[%clk 0:01:31.4]} 23... Rxc1
{[%clk 0:02:03.7]} 24. Rxc1 {[%clk 0:01:29.7]} 24... g6 {[%clk 0:02:02.2]} 25.
Ke2 {[%clk 0:01:24]} 25... Nxf4+ {[%clk 0:01:58.2]} 26. Kf3 {[%clk 0:01:07.1]}
26... Nd3 {[%clk 0:01:50.1]} 27. Rb1 {[%clk 0:00:29.1]} 27... Nxb2 {[%clk
0:01:43]} 28. Rxb2 {[%clk 0:00:30]} 28... Ke7 {[%clk 0:01:42.1]} 29. Ke2 {[%clk
0:00:28.9]} 29... f5 {[%clk 0:01:41]} 30. Rc2 {[%clk 0:00:28.1]} 30... Kd6
{[%clk 0:01:39.5]} 31. Bb5 {[%clk 0:00:26.5]} 31... Ke5 {[%clk 0:01:35.9]} 32.
h3 {[%clk 0:00:22.5]} 32... g5 {[%clk 0:01:36]} 33. Kf3 {[%clk 0:00:21.8]} 33...
h5 {[%clk 0:01:35.8]} 34. Ba6 {[%clk 0:00:16.1]} 34... g4+ {[%clk 0:01:28.5]}
35. hxg4 {[%clk 0:00:16.4]} 35... fxg4+ {[%clk 0:01:29.4]} 36. Kg3 {[%clk
0:00:15.1]} 36... Rg8 {[%clk 0:01:24.2]} 37. Be2 {[%clk 0:00:13.3]} 37... Be7
{[%clk 0:01:23.4]} 38. Rb2 {[%clk 0:00:08.4]} 38... h4+ {[%clk 0:01:23.1]} 39.
Kg2 {[%clk 0:00:08.2]} 39... Bb4 {[%clk 0:01:19.2]} 40. Rc2 {[%clk 0:00:06.9]}
40... Bd6 {[%clk 0:01:17.2]} 41. Rc4 {[%clk 0:00:05.4]} 41... h3+ {[%clk
0:01:17]} 42. Kg1 {[%clk 0:00:04.6]} 42... g3 {[%clk 0:01:15.5]} 43. fxg3 {[%clk
0:00:03.3]} 43... Rxg3+ {[%clk 0:01:16.4]} 44. Kh1 {[%clk 0:00:02.8]} 44... Rxe3
{[%clk 0:01:15.6]} 45. Bf1 {[%clk 0:00:02.6]} 45... Kd5 {[%clk 0:01:08.3]} 46.
Rh4 {[%clk 0:00:02.3]} 46... h2 {[%clk 0:01:07.9]} 47. Kg2 {[%clk 0:00:01.5]}
47... Ra3 {[%clk 0:01:07]} 48. Rg4 {[%clk 0:00:01.4]} 48... Ra2+ {[%clk
0:01:00.7]} 0-1

[Event "Late-Titled-Tuesday-Blitz-September-26-2023"]
[Site "Chess.com"]
[Date "2023.09.26"]
[Round "4"]
[White "Smiechu"]
[Black "Flawless_Fighter"]
[Result "1-0"]
[WhiteElo "2542"]
[BlackElo "2774"]
[TimeControl "180+1"]
[EndTime "14:37:56 PDT"]
[Termination "Smiechu won by resignation"]

1. e4 {[%clk 0:03:00.9]} 1... c6 {[%clk 0:02:57.4]} 2. d4 {[%clk 0:03:00.5]}
2... d5 {[%clk 0:02:58.3]} 3. f3 {[%clk 0:03:00.8]} 3... g6 {[%clk 0:02:57.7]}
4. Nc3 {[%clk 0:02:54.8]} 4... Bg7 {[%clk 0:02:54.3]} 5. Be3 {[%clk 0:02:54.7]}
5... Qb6 {[%clk 0:02:54.5]} 6. Qd2 {[%clk 0:02:52.9]} 6... Nf6 {[%clk
0:02:43.2]} 7. e5 {[%clk 0:02:42.1]} 7... Nfd7 {[%clk 0:02:41]} 8. Bd3 {[%clk
0:02:41.2]} 8... O-O {[%clk 0:02:39.3]} 9. h4 {[%clk 0:02:40.3]} 9... f5 {[%clk
0:02:34]} 10. h5 {[%clk 0:02:26.1]} 10... f4 {[%clk 0:02:30.7]} 11. Bf2 {[%clk
0:02:21.3]} 11... Qxb2 {[%clk 0:02:08.3]} 12. Rb1 {[%clk 0:02:18.9]} 12... Qa3
{[%clk 0:02:08.5]} 13. hxg6 {[%clk 0:02:15.7]} 13... h6 {[%clk 0:02:08.2]} 14.
Nh3 {[%clk 0:02:01.5]} 14... Nxe5 {[%clk 0:01:58.1]} 15. dxe5 {[%clk 0:01:56.9]}
15... Bxe5 {[%clk 0:01:59]} 16. Rb3 {[%clk 0:01:55.8]} 16... Qa5 {[%clk
0:01:58.1]} 17. O-O {[%clk 0:01:51.5]} 17... Qc7 {[%clk 0:01:25.1]} 18. Re1
{[%clk 0:01:40.8]} 18... Bd6 {[%clk 0:01:19]} 19. g7 {[%clk 0:01:13.3]} 19...
Rf7 {[%clk 0:01:10.8]} 20. Qe2 {[%clk 0:00:55.7]} 20... Rxg7 {[%clk 0:01:07.8]}
21. Kh2 {[%clk 0:00:55.9]} 21... e5 {[%clk 0:01:07.8]} 22. Nxf4 {[%clk
0:00:37.1]} 22... e4 {[%clk 0:01:00.5]} 23. Nxe4 {[%clk 0:00:25.8]} 23... Bxf4+
{[%clk 0:01:00.3]} 24. g3 {[%clk 0:00:26]} 24... dxe4 {[%clk 0:00:54.7]} 25.
Qxe4 {[%clk 0:00:26.1]} 25... Bxg3+ {[%clk 0:00:52]} 26. Kh1 {[%clk 0:00:25.5]}
26... Qd8 {[%clk 0:00:06.9]} 27. Bc4+ {[%clk 0:00:23.5]} 27... Kh8 {[%clk
0:00:07]} 28. Qe8+ {[%clk 0:00:21.9]} 28... Qxe8 {[%clk 0:00:07]} 29. Rxe8+
{[%clk 0:00:21.5]} 29... Kh7 {[%clk 0:00:07.7]} 30. Bd3+ {[%clk 0:00:21]} 30...
Rg6 {[%clk 0:00:08.1]} 31. Bxg3 {[%clk 0:00:19.2]} 31... Na6 {[%clk 0:00:07.3]}
32. Re7+ {[%clk 0:00:17.2]} 1-0

[Event "Late-Titled-Tuesday-Blitz-September-26-2023"]
[Site "Chess.com"]
[Date "2023.09.26"]
[Round "4"]
[White "dorpato"]
[Black "RIPOL"]
[Result "1/2-1/2"]
[WhiteElo "2029"]
[BlackElo "2404"]
[TimeControl "180+1"]
[EndTime "14:37:57 PDT"]
[Termination "Game drawn by repetition"]

1. e4 {[%clk 0:02:59]} 1... Nf6 {[%clk 0:02:58.9]} 2. Nc3 {[%clk 0:02:55.4]}
2... d5 {[%clk 0:02:58.2]} 3. exd5 {[%clk 0:02:55.7]} 3... Nxd5 {[%clk
0:02:57.8]} 4. Bc4 {[%clk 0:02:56.4]} 4... Nb6 {[%clk 0:02:57.3]} 5. Bb3 {[%clk
0:02:55.8]} 5... Nc6 {[%clk 0:02:57.7]} 6. Nge2 {[%clk 0:02:50]} 6... g6 {[%clk
0:02:57.1]} 7. O-O {[%clk 0:02:49]} 7... Bg7 {[%clk 0:02:56.8]} 8. d3 {[%clk
0:02:45.3]} 8... O-O {[%clk 0:02:56.1]} 9. Be3 {[%clk 0:02:43.4]} 9... Na5
{[%clk 0:02:55.5]} 10. d4 {[%clk 0:02:35.1]} 10... Nbc4 {[%clk 0:02:40.9]} 11.
Bc1 {[%clk 0:02:22.3]} 11... b6 {[%clk 0:02:31.4]} 12. Qd3 {[%clk 0:02:15.7]}
12... Nxb3 {[%clk 0:02:28.5]} 13. axb3 {[%clk 0:02:16.6]} 13... Nd6 {[%clk
0:02:27.8]} 14. Bf4 {[%clk 0:02:06.5]} 14... Bb7 {[%clk 0:02:26.3]} 15. Nb5
{[%clk 0:01:59.9]} 15... Be4 {[%clk 0:02:04]} 16. Qe3 {[%clk 0:01:55.2]} 16...
Bxc2 {[%clk 0:01:40.7]} 17. Bxd6 {[%clk 0:01:48.3]} 17... cxd6 {[%clk
0:01:26.5]} 18. Nxa7 {[%clk 0:01:34]} 18... Qd7 {[%clk 0:01:25]} 19. Rfc1 {[%clk
0:01:24.7]} 19... Rxa7 {[%clk 0:01:22]} 20. Rxa7 {[%clk 0:01:17.3]} 20... Qxa7
{[%clk 0:01:21.2]} 21. Rxc2 {[%clk 0:01:17.1]} 21... b5 {[%clk 0:01:15]} 22. g3
{[%clk 0:01:06.6]} 22... e5 {[%clk 0:00:58.4]} 23. Rd2 {[%clk 0:00:47.7]} 23...
Ra8 {[%clk 0:00:37.5]} 24. Qd3 {[%clk 0:00:38.5]} 24... Qa1+ {[%clk 0:00:32.9]}
25. Kg2 {[%clk 0:00:35.8]} 25... Qe1 {[%clk 0:00:29.4]} 26. Rd1 {[%clk
0:00:30.2]} 26... Qb4 {[%clk 0:00:28.6]} 27. dxe5 {[%clk 0:00:26.8]} 27... Bxe5
{[%clk 0:00:28.1]} 28. Nd4 {[%clk 0:00:20.3]} 28... Bxd4 {[%clk 0:00:26.5]} 29.
Qxd4 {[%clk 0:00:20.6]} 29... Qxb3 {[%clk 0:00:26.5]} 30. Rd3 {[%clk 0:00:18.3]}
30... Qc2 {[%clk 0:00:24.3]} 31. Rd2 {[%clk 0:00:18.3]} 31... Qc1 {[%clk
0:00:23.6]} 32. Qxd6 {[%clk 0:00:17.9]} 32... Ra1 {[%clk 0:00:20.9]} 33. Qd8+
{[%clk 0:00:16.7]} 33... Kg7 {[%clk 0:00:20.9]} 34. Qd4+ {[%clk 0:00:16.8]}
34... Kh6 {[%clk 0:00:20.3]} 35. Qf4+ {[%clk 0:00:16.5]} 35... Kg7 {[%clk
0:00:20.2]} 36. Qe5+ {[%clk 0:00:16.7]} 36... Kh6 {[%clk 0:00:19.9]} 37. Qe3+
{[%clk 0:00:16.3]} 37... Kg7 {[%clk 0:00:19.3]} 38. Qd4+ {[%clk 0:00:16.8]}
38... Kh6 {[%clk 0:00:19.5]} 39. Qh4+ {[%clk 0:00:16.9]} 39... Kg7 {[%clk
0:00:19.3]} 40. Qd4+ {[%clk 0:00:17.4]} 1/2-1/2

[Event "Late-Titled-Tuesday-Blitz-September-26-2023"]
[Site "Chess.com"]
[Date "2023.09.26"]
[Round "4"]
[White "ukchessbomber"]
[Black "Taran2004"]
[Result "1-0"]
[WhiteElo "2663"]
[BlackElo "2447"]
[TimeControl "180+1"]
[EndTime "14:37:58 PDT"]
[Termination "ukchessbomber won by resignation"]

1. a4 {[%clk 0:02:58.8]} 1... g6 {[%clk 0:02:58.1]} 2. g3 {[%clk 0:02:58.6]}
2... Bg7 {[%clk 0:02:58.7]} 3. Bg2 {[%clk 0:02:59.5]} 3... Nf6 {[%clk
0:02:59.1]} 4. Nc3 {[%clk 0:02:59.8]} 4... O-O {[%clk 0:02:59.7]} 5. d3 {[%clk
0:02:59.8]} 5... c5 {[%clk 0:03:00.2]} 6. Bd2 {[%clk 0:03:00.1]} 6... Nc6 {[%clk
0:03:00.6]} 7. Qc1 {[%clk 0:03:00.7]} 7... d5 {[%clk 0:02:51.3]} 8. Bh6 {[%clk
0:03:00.2]} 8... d4 {[%clk 0:02:48.1]} 9. Nd1 {[%clk 0:02:59.3]} 9... e5 {[%clk
0:02:41.1]} 10. h4 {[%clk 0:02:59]} 10... e4 {[%clk 0:02:38.5]} 11. dxe4 {[%clk
0:02:54.2]} 11... c4 {[%clk 0:02:38.2]} 12. h5 {[%clk 0:02:53.8]} 12... d3
{[%clk 0:02:29.7]} 13. Bxg7 {[%clk 0:02:52.2]} 13... Kxg7 {[%clk 0:02:29.6]} 14.
hxg6 {[%clk 0:02:52.7]} 14... fxg6 {[%clk 0:02:29.8]} 15. Qh6+ {[%clk 0:02:51]}
15... Kg8 {[%clk 0:02:30.1]} 16. cxd3 {[%clk 0:02:24.3]} 16... cxd3 {[%clk
0:02:31]} 17. Nc3 {[%clk 0:02:24.5]} 17... Be6 {[%clk 0:02:16.9]} 18. O-O-O
{[%clk 0:02:02.8]} 18... Qb6 {[%clk 0:02:06.2]} 19. Rxd3 {[%clk 0:01:03.5]}
19... Ne5 {[%clk 0:01:45.2]} 20. Nh3 {[%clk 0:00:21.2]} 20... Nxd3+ {[%clk
0:01:14.9]} 21. exd3 {[%clk 0:00:22.1]} 21... Ng4 {[%clk 0:01:05.1]} 22. Qh4
{[%clk 0:00:16.6]} 22... h5 {[%clk 0:00:43.8]} 23. Qg5 {[%clk 0:00:11.1]} 23...
Bf7 {[%clk 0:00:38]} 24. Nf4 {[%clk 0:00:10.5]} 24... Nxf2 {[%clk 0:00:23.6]}
25. Rxh5 {[%clk 0:00:07.2]} 25... Qe3+ {[%clk 0:00:23.5]} 26. Kc2 {[%clk
0:00:05.7]} 26... Nxd3 {[%clk 0:00:13.7]} 27. Nxd3 {[%clk 0:00:05.3]} 27... Qxg5
{[%clk 0:00:13.8]} 28. Rxg5 {[%clk 0:00:05.4]} 28... Rad8 {[%clk 0:00:13.5]} 29.
Nf4 {[%clk 0:00:05.8]} 29... Kg7 {[%clk 0:00:12.8]} 30. e5 {[%clk 0:00:06.4]}
30... Rfe8 {[%clk 0:00:13.1]} 31. e6 {[%clk 0:00:06.5]} 31... Bxe6 {[%clk
0:00:13.6]} 32. Rxg6+ {[%clk 0:00:06.7]} 32... Kf7 {[%clk 0:00:14.3]} 33. Rxe6
{[%clk 0:00:07]} 33... Rxe6 {[%clk 0:00:15]} 34. Nxe6 {[%clk 0:00:07.9]} 34...
Kxe6 {[%clk 0:00:15.6]} 35. Bxb7 {[%clk 0:00:08.4]} 35... Rg8 {[%clk 0:00:16]}
36. Bd5+ {[%clk 0:00:08.1]} 36... Kd6 {[%clk 0:00:15.4]} 37. Bxg8 {[%clk
0:00:09]} 1-0